Organisation Name,Organisation Code,Directorate/Service,Service Category Label,Service Code,Supplier Name,Supplier Reference,Payment Date,Transaction Number,Net Payments,Purpose of Spend
North West Leicestershire District Council,31UH,Planning & Development,Environment Planning Policy,EPP,Clearlead Consulting Ltd,A044888,07/04/2021,1408754,787.50,Consultants Fees
North West Leicestershire District Council,31UH,Information Technology,ICT Services,ICT,Nviron Limited,A023640,07/04/2021,1408755,"1,470.00",Legal & Professional Services
North West Leicestershire District Council,31UH,Economic Development,Business Focus Group,BFG,Keegan Ford Sponsorship Ltd,A046774,07/04/2021,1408769,"3,500.00",Sponsorship 
North West Leicestershire District Council,31UH,Economic Development,Business Focus Group,BFG,Keegan Ford Sponsorship Ltd,A046774,07/04/2021,1408770,585.00,Sponsorship 
North West Leicestershire District Council,31UH,Economic Development,Business Focus Group,BFG,Keegan Ford Sponsorship Ltd,A046774,07/04/2021,1408771,"3,500.00",Sponsorship 
North West Leicestershire District Council,31UH,Economic Development,Business Focus Group,BFG,Keegan Ford Sponsorship Ltd,A046774,07/04/2021,1408772,780.00,Sponsorship 
North West Leicestershire District Council,31UH,Economic Development,Business Focus Group,BFG,Keegan Ford Sponsorship Ltd,A046774,07/04/2021,1408773,"3,500.00",Sponsorship 
North West Leicestershire District Council,31UH,Economic Development,Business Focus Group,BFG,Keegan Ford Sponsorship Ltd,A046774,07/04/2021,1408774,780.00,Sponsorship 
North West Leicestershire District Council,31UH,Street Management,Environment Parks,ENOP,JB Tool Hire Ltd,A011490,07/04/2021,1408775,360.00,Operational Purchases
North West Leicestershire District Council,31UH,Street Management,Environment Parks,ENOP,JB Tool Hire Ltd,A011490,07/04/2021,1408776,600.00,Operational Purchases
North West Leicestershire District Council,31UH,Street Management,Environment Parks,ENOP,James Coles & Sons (Nurseries) Ltd,A000384,07/04/2021,1408778,"1,183.00",General Repairs
North West Leicestershire District Council,31UH,Housing Repairs,HRA Housing Repairs & Maintenance,HRAHRM,Michael Dyson Associates Ltd,A028431,07/04/2021,1408817,756.00,Legal & Professional Services
North West Leicestershire District Council,31UH,Property Services,Property Commercial Lettings,PROPCL,Ultracom Ltd,A045778,07/04/2021,1408823,279.00,Telephones
North West Leicestershire District Council,31UH,Planning & Development,Environment - Town Centre/CCTV,ECCTV,Leicestershire County Council,A000950,07/04/2021,1408832,"2,500.00",Community Safety
North West Leicestershire District Council,31UH,Street Management,Environment Parks,ENOP,FAROL Limited,A041905,07/04/2021,1408835,"6,519.00",Operational Equipment
North West Leicestershire District Council,31UH,Corporate Director,Human Resources,HR,Wider Plan Ltd,A043948,07/04/2021,1408856,"1,269.00",Staff Benefit Scheme
North West Leicestershire District Council,31UH,Economic Development,Business Focus Group,BFG,Arch Communications (UK) Ltd,A046458,07/04/2021,1408862,"1,320.00",Consultants Fees
North West Leicestershire District Council,31UH,Street Management,Environment Transport,ENOT,J F Lloyd & Sons,A000991,07/04/2021,1408962,330.00,Hire Of Operational Equipment
North West Leicestershire District Council,31UH,Property Services,Property Commercial Lettings,PROPCL,Coalville Cleaning Services,A003037,07/04/2021,1408391,653.25,Contract Cleaning
North West Leicestershire District Council,31UH,Street Management,Environment Parks,ENOP,Regarde Security Ltd,A013049,07/04/2021,1408393,700.00,Building Security
North West Leicestershire District Council,31UH,Street Management,Environment Transport,ENOT,Certas Energy Uk Ltd,A043448,07/04/2021,1408420,"18,211.99",Fuel
North West Leicestershire District Council,31UH,Planning & Development,Environment Planning Policy,EPP,AECOM Limited,A037801,07/04/2021,1408439,"13,695.00",Consultants Fees
North West Leicestershire District Council,31UH,Street Management,Environment Transport,ENOT,Certas Energy Uk Ltd,A043448,07/04/2021,1408618,524.10,Fuel
North West Leicestershire District Council,31UH,Street Management,Environment Transport,ENOT,WasteParts UK Limited,A036236,07/04/2021,1408753,"1,150.00",Repairs - Parts
North West Leicestershire District Council,31UH,Property Services,Property Commercial Lettings,PROPCL,IDP Group,A045557,07/04/2021,1408757,"6,075.00",Consultants Fees
North West Leicestershire District Council,31UH,Street Management,Environment - Street Scene,ESS,Regarde Security Ltd,A013049,07/04/2021,1408759,630.00,Contract Payments (Other) Ext
North West Leicestershire District Council,31UH,Street Management,Environment Transport,ENOT,O Kay Engineering Services Ltd,A041943,07/04/2021,1408768,745.00,Operational Equipment
North West Leicestershire District Council,31UH,Environmental Health,Environmental Health & Licensing,EEHL,Eville And Jones Limited,A033670,07/04/2021,1408777,"2,909.20",Vet Inspection
North West Leicestershire District Council,31UH,Finance,Financial Planning,FINPLA,Macildowie Associates Ltd,A046022,07/04/2021,1408787,"1,565.67",Agency Staff
North West Leicestershire District Council,31UH,Economic Development,Business Focus Group,BFG,NPS Peterborough Ltd,A044569,07/04/2021,1408802,550.00,Legal & Professional Services
North West Leicestershire District Council,31UH,Information Technology,ICT Services,ICT,ACS Systems (UK) Ltd T/a ACS Office Solutions,A043447,07/04/2021,1408803,878.00,Administrative Equipment
North West Leicestershire District Council,31UH,Street Management,Environment Parks,ENOP,Westbury Industrial Supplies Limited,A009933,07/04/2021,1408805,301.80,Protective Clothing
North West Leicestershire District Council,31UH,Information Technology,ICT Services,ICT,Phoenix Software Limited,A001298,07/04/2021,1408810,941.85,Admin Equipment - Maintenance
North West Leicestershire District Council,31UH,Street Management,Environment Parks,ENOP,Keith Cook Training Services,A027792,07/04/2021,1408824,552.00,Training Expenses
North West Leicestershire District Council,31UH,Street Management,Environment - Street Scene,ESS,Brightcorp T/A The Retail Group,A045854,07/04/2021,1408825,"2,887.50",Contract Payments (Other) Ext
North West Leicestershire District Council,31UH,Information Technology,ICT Services,ICT,Six Degrees Technology Group Ltd,A044205,07/04/2021,1408837,"16,300.12",Admin Equipment - Maintenance
North West Leicestershire District Council,31UH,Corporate Director,Human Resources,HR,East Midlands Councils,A008942,07/04/2021,1407968,550.00,Corporate Training
North West Leicestershire District Council,31UH,Housing,HRA Performance & Business Support,HRAPBS,AJS Structural Design,A046782,07/04/2021,1408845,"3,200.00",Legal & Professional Services
North West Leicestershire District Council,31UH,Information Technology,ICT Services,ICT,Freedom Communications (UK) Ltd,A032826,07/04/2021,1408855,"13,394.00",Contract Payments (Other) Ext
North West Leicestershire District Council,31UH,Street Management,Environment - Street Scene,ESS,Coalville Cleaning Services,A003037,07/04/2021,1408857,365.00,Operational Equipment
North West Leicestershire District Council,31UH,Housing Repairs,HRA Housing Repairs & Maintenance,HRAHRM,Ctrack Ltd,A045628,07/04/2021,1408863,"1,576.80",Vehicle and Transport Costs
North West Leicestershire District Council,31UH,Information Technology,ICT Services,ICT,Cuttlefish Multimedia Ltd,A032102,07/04/2021,1408865,"1,718.33",Website Maintenance
North West Leicestershire District Council,31UH,Street Management,Environment Parks,ENOP,Taylormade Castings Ltd,A034203,07/04/2021,1408927,"2,095.00",Operational Purchases
North West Leicestershire District Council,31UH,Finance,Financial Planning,FINPLA,Sports & Leisure Management Ltd,A045556,07/04/2021,1408955,"50,944.67",Payments To Contractor
North West Leicestershire District Council,31UH,Corporate Director,Human Resources,HR,Thompsons Solicitors,A044585,07/04/2021,1408956,350.00,Legal & Professional Services
North West Leicestershire District Council,31UH,Economic Development,Business Focus Group,BFG,Sutton Media Ltd,A046705,07/04/2021,1408960,"24,960.00",Advertising
North West Leicestershire District Council,31UH,Chief Exec,Chief Executive,CHEX,IDP Group,A045557,07/04/2021,1408965,"3,750.00",Consultants Fees
North West Leicestershire District Council,31UH,Street Management,Environment Transport,ENOT,Coalville Cleaning Services,A003037,07/04/2021,1408966,"1,685.78",Contract Cleaning
North West Leicestershire District Council,31UH,Street Management,Environment Parks,ENOP,Keith Cook Training Services,A027792,07/04/2021,1408968,520.00,Training Expenses
North West Leicestershire District Council,31UH,Finance,Financial Planning,FINPLA,Leicestershire County Council,A000950,07/04/2021,1408981,"2,681,314.00",2019/20 Agency Pool Levies
North West Leicestershire District Council,31UH,Leisure & Culture,Sport & Physical Activity,SPA,Castle Donington College,A000302,14/04/2021,1408782,"1,000.00",Exercise Sessions
North West Leicestershire District Council,31UH,Leisure & Culture,Sport & Physical Activity,SPA,Ibstock Community College,A000804,14/04/2021,1408783,"1,000.00",Exercise Sessions
North West Leicestershire District Council,31UH,Street Management,Environment Waste Management,ENOWM,One51 ES Plastics(UK) Ltd  t/a MGB Plastics,A044595,14/04/2021,1408860,650.00,General Materials
North West Leicestershire District Council,31UH,Street Management,Environment Parks,ENOP,Playdale Playgrounds Ltd,A028502,14/04/2021,1408976,"4,515.35",General Repairs
North West Leicestershire District Council,31UH,Corporate Director,Human Resources,HR,XpertHR,A036902,14/04/2021,1408987,980.00,Subscriptions
North West Leicestershire District Council,31UH,Information Technology,ICT Services,ICT,Phoenix Software Limited,A001298,14/04/2021,1408990,712.50,Administrative Equipment
North West Leicestershire District Council,31UH,Information Technology,ICT Services,ICT,ACS Systems (UK) Ltd T/a ACS Office Solutions,A043447,14/04/2021,1408993,266.46,Operational Equipment
North West Leicestershire District Council,31UH,Information Technology,ICT Services,ICT,Cuttlefish Multimedia Ltd,A032102,14/04/2021,1408994,780.00,Administrative Equipment
North West Leicestershire District Council,31UH,Chief Exec,Chief Executive,CHEX,Reflec Signs & Graphics Ltd,A025348,14/04/2021,1408996,380.00,Other Printing
North West Leicestershire District Council,31UH,Finance,Financial Planning,FINPLA,Macildowie Associates Ltd,A046022,14/04/2021,1408998,"1,632.90",Agency Staff
North West Leicestershire District Council,31UH,Street Management,Environment Waste Management,ENOWM,Groundsman Tools & Supplies LLP,A030744,14/04/2021,1409001,"1,713.75",Operational Equipment
North West Leicestershire District Council,31UH,Finance,Financial Planning,FINPLA,Macildowie Associates Ltd,A046022,14/04/2021,1409016,982.59,Agency Staff
North West Leicestershire District Council,31UH,Leisure & Culture,Cultural Services Arts & Events,CULTEV,Sunshine Screenprint Ltd,A045020,14/04/2021,1409023,"1,910.00",Event Expenditure
North West Leicestershire District Council,31UH,Chief Exec,Chief Executive,CHEX,Readings Property Group Ltd,A045486,14/04/2021,1409043,787.50,Legal & Professional Services
North West Leicestershire District Council,31UH,Housing,HRA Housing Management,HRAHM,Readings Property Group Ltd,A045486,14/04/2021,1409065,250.00,Legal & Professional Services
North West Leicestershire District Council,31UH,Street Management,Environment - Street Scene,ESS,National Association of British,A032899,14/04/2021,1409071,738.00,Subscriptions
North West Leicestershire District Council,31UH,Finance,Financial Planning,FINPLA,RPT Consulting Ltd,A043782,14/04/2021,1409100,"3,200.00",Consultants Fees
North West Leicestershire District Council,31UH,Street Management,Environment Transport,ENOT,Westbury Industrial Supplies Limited,A009933,14/04/2021,1409104,548.55,Operational Equipment
North West Leicestershire District Council,31UH,Street Management,Environment Transport,ENOT,Westbury Industrial Supplies Limited,A009933,14/04/2021,1409105,336.00,Cleaning & Domestic Equipment
North West Leicestershire District Council,31UH,Legal & Democratic,Civic Expenses,LDCE,ESPO,A000958,14/04/2021,1407817,"2,244.96",Election Fees
North West Leicestershire District Council,31UH,Street Management,Environment Parks,ENOP,Central Construction Services,A004448,14/04/2021,1408422,"1,307.55",Operational Purchases
North West Leicestershire District Council,31UH,Economic Development,Business Focus Group,BFG,The Professional Promotion Company Ltd,A043727,14/04/2021,1408991,915.00,Cleaning & Domestic Equipment
North West Leicestershire District Council,31UH,Street Management,Environment Parks,ENOP,Vitax Limited,A031093,14/04/2021,1409067,287.40,Operational Purchases
North West Leicestershire District Council,31UH,Housing,HRA Housing Management,HRAHM,Readings Property Group Ltd,A045486,14/04/2021,1409068,375.00,Legal & Professional Services
North West Leicestershire District Council,31UH,Street Management,Environment - Street Scene,ESS,Pod Point Ltd,A045298,14/04/2021,1409073,"27,449.69",Contract Payments (Other) Ext
North West Leicestershire District Council,31UH,Street Management,Environment - Street Scene,ESS,Pod Point Ltd,A045298,14/04/2021,1409075,"26,253.81",Contract Payments (Other) Ext
North West Leicestershire District Council,31UH,Street Management,Environment - Street Scene,ESS,Pod Point Ltd,A045298,14/04/2021,1409077,"45,417.54",Contract Payments (Other) Ext
North West Leicestershire District Council,31UH,Leisure & Culture,Sport & Physical Activity,SPA,Ibstock Community College,A000804,14/04/2021,1409097,255.00,Exercise Sessions
North West Leicestershire District Council,31UH,Street Management,Environment - Street Scene,ESS,RAS Town Planning Services,A045293,14/04/2021,1409099,"3,900.00",Consultants Fees
North West Leicestershire District Council,31UH,Finance,Financial Planning,FINPLA,CIPFA,A027467,14/04/2021,1409102,"1,332.00",Computing
North West Leicestershire District Council,31UH,Finance,Financial Planning,FINPLA,CIPFA,A027467,14/04/2021,1409103,"3,000.00",Computing
North West Leicestershire District Council,31UH,Street Management,Environment - Street Scene,ESS,Easyhire Plant Ltd,A046275,14/04/2021,1409107,700.00,Contract Payments (Other) Ext
North West Leicestershire District Council,31UH,Street Management,Environment - Street Scene,ESS,Easyhire Plant Ltd,A046275,14/04/2021,1409108,385.00,Contract Payments (Other) Ext
North West Leicestershire District Council,31UH,Street Management,Environment - Street Scene,ESS,Easyhire Plant Ltd,A046275,14/04/2021,1409109,875.00,Contract Payments (Other) Ext
North West Leicestershire District Council,31UH,Street Management,Environment Parks,ENOP,Seton Limited,A001465,14/04/2021,1409024,258.93,Operational Purchases
North West Leicestershire District Council,31UH,Street Management,Environment Parks,ENOP,BPI Recycled Products,A017624,14/04/2021,1409061,855.55,Operational Purchases
North West Leicestershire District Council,31UH,Environmental Health,Environmental Health & Licensing,EEHL,Eville And Jones Limited,A033670,14/04/2021,1409098,"2,909.20",Vet Inspection
North West Leicestershire District Council,31UH,Housing,HRA Housing Management,HRAHM,Resolve Antisocial Behaviour,A035396,14/04/2021,1409132,990.00,Legal & Professional Services
North West Leicestershire District Council,31UH,Planning & Development,Environment - Development Control,EDC,TMP Worldwide Ltd,A045319,14/04/2021,1409218,301.68,Advertising
North West Leicestershire District Council,31UH,Planning & Development,Environment - Development Control,EDC,TMP Worldwide Ltd,A045319,14/04/2021,1409221,369.38,Advertising
North West Leicestershire District Council,31UH,Information Technology,ICT Services,ICT,Chess Cybersecurity Formerly Foursys Ltd,A029908,14/04/2021,1409222,650.00,Administrative Equipment
North West Leicestershire District Council,31UH,Information Technology,ICT Services,ICT,Idox Software Ltd,A034157,14/04/2021,1409223,"5,100.00",Software Licences
North West Leicestershire District Council,31UH,Planning & Development,Environment - Development Control,EDC,TMP Worldwide Ltd,A045319,14/04/2021,1409224,"1,296.32",Advertising
North West Leicestershire District Council,31UH,Information Technology,ICT Services,ICT,Freedom Communications (UK) Ltd,A032826,14/04/2021,1409228,932.58,C.O. - Call Charges
North West Leicestershire District Council,31UH,Property Services,Property Commercial Lettings,PROPCL,Coalville Cleaning Services,A003037,14/04/2021,1408392,347.53,Contract Cleaning
North West Leicestershire District Council,31UH,Property Services,Property Facilities Management,PROPFM,John Merison BMC Ltd,A001092,14/04/2021,1408435,612.13,General Repairs
North West Leicestershire District Council,31UH,Housing Repairs,HRA Housing Repairs & Maintenance,HRAHRM,Westbury Industrial Supplies Limited,A009933,14/04/2021,1408488,258.22,Protective Clothing
North West Leicestershire District Council,31UH,Property Services,Property Facilities Management,PROPFM,IDP Group,A045557,14/04/2021,1408756,"2,000.00",Consultants Fees
North West Leicestershire District Council,31UH,Finance,Exchequer Services,EXCH,Capita Business Services Ltd,A002968,14/04/2021,1409020,"10,098.11",Computing
North West Leicestershire District Council,31UH,Property Services,Property Commercial Lettings,PROPCL,Urban Planters Leicestershire (limited),A003371,14/04/2021,1409063,552.50,Internal Decorations
North West Leicestershire District Council,31UH,Property Services,Property Facilities Management,PROPFM,Coalville Cleaning Services,A003037,14/04/2021,1409229,"2,968.20",Contract Cleaning
North West Leicestershire District Council,31UH,Corporate Director,Human Resources,HR,GatenbySanderson Limited,A034524,14/04/2021,1409233,"1,200.00",Employee Advertising
North West Leicestershire District Council,31UH,Corporate Director,Human Resources,HR,GatenbySanderson Limited,A034524,14/04/2021,1409234,"4,260.00",Employee Advertising
North West Leicestershire District Council,31UH,Finance,Financial Planning,FINPLA,Macildowie Associates Ltd,A046022,14/04/2021,1409240,"1,339.04",Agency Staff
North West Leicestershire District Council,31UH,Housing Repairs,HRA Housing Repairs & Maintenance,HRAHRM,Michael Dyson Associates Ltd,A028431,14/04/2021,1408861,483.00,Legal & Professional Services
North West Leicestershire District Council,31UH,Property Services,Property Commercial Lettings,PROPCL,Gleam Team Services Limited,A000129,14/04/2021,1408983,350.00,Cleaning & Domestic Equipment
North West Leicestershire District Council,31UH,Property Services,Property Facilities Management,PROPFM,Regarde Security Ltd,A013049,14/04/2021,1409025,558.00,Building Security
North West Leicestershire District Council,31UH,Property Services,Property Facilities Management,PROPFM,Regarde Security Ltd,A013049,14/04/2021,1409026,656.85,Building Security
North West Leicestershire District Council,31UH,Property Services,Property Facilities Management,PROPFM,Regarde Security Ltd,A013049,14/04/2021,1409030,369.00,Security Services
North West Leicestershire District Council,31UH,Environmental Health,Environmental Health & Licensing,EEHL,Association Of Port Health Authorities,A000103,14/04/2021,1409052,"1,050.00",Subscriptions
North West Leicestershire District Council,31UH,Planning & Development,Environment - Development Control,EDC,Ilex Tree Services,A046556,14/04/2021,1409219,"1,579.00",External Legal Fees & Advice
North West Leicestershire District Council,31UH,Planning & Development,Environment - Development Control,EDC,Rob Thompson Urbanism Limited,A045846,14/04/2021,1409220,"3,150.00",Consultants Fees
North West Leicestershire District Council,31UH,Information Technology,ICT Services,ICT,Phoenix Software Limited,A001298,14/04/2021,1409062,"2,742.45",Corporate IT Licences
North West Leicestershire District Council,31UH,Housing,HRA Housing Management,HRAHM,Oneserve Ltd,A041321,14/04/2021,1409231,"41,859.22",Computing
North West Leicestershire District Council,31UH,Housing,HRA Older Persons Service,HRAOPS,Tunstall Healthcare (UK) Limited,A001701,14/04/2021,1409244,749.40,Alarm System Telephones
North West Leicestershire District Council,31UH,Finance,Financial Planning,FINPLA,Macildowie Associates Ltd,A046022,14/04/2021,1409239,"1,661.10",Agency Staff
North West Leicestershire District Council,31UH,Housing,HRA Housing Management,HRAHM,Alliance Contracting Solutions Ltd,A043325,21/04/2021,1407683,"13,779.78",Legal & Professional Services
North West Leicestershire District Council,31UH,Housing,HRA Housing Management,HRAHM,Alliance Contracting Solutions Ltd,A043325,21/04/2021,1407684,"25,094.41",Legal & Professional Services
North West Leicestershire District Council,31UH,Street Management,Environment Transport,ENOT,Integra Buildings Limited,A046025,21/04/2021,1408819,"54,906.50",Contract Payments (Other) Ext
North West Leicestershire District Council,31UH,Housing,HRA Housing Management,HRAHM,Aareon UK Ltd,A045197,21/04/2021,1409267,"1,740.00",Contract Payments (Other) Ext
North West Leicestershire District Council,31UH,Housing,HRA Housing Management,HRAHM,Aareon UK Ltd,A045197,21/04/2021,1409268,875.00,Contract Payments (Other) Ext
North West Leicestershire District Council,31UH,Leisure & Culture,Cultural Services Arts & Events,CULTEV,Global Tourism Solutions (UK) Ltd,A046658,21/04/2021,1409270,500.00,Special Events
North West Leicestershire District Council,31UH,Street Management,Environment - Street Scene,ESS,County Drains Leicester Ltd,A024295,21/04/2021,1409271,251.00,General Repairs
North West Leicestershire District Council,31UH,Street Management,Environment Transport,ENOT,Mertrux Ltd,A035291,21/04/2021,1409284,407.02,Repairs - Parts
North West Leicestershire District Council,31UH,Corporate Director,Human Resources,HR,Specsavers Corporate Eyecare,A028625,21/04/2021,1409292,525.00,Eye Care Vouchers
North West Leicestershire District Council,31UH,Economic Development,Business Focus Group,BFG,Event Cup Solutions,A046794,21/04/2021,1409314,982.26,Cleaning & Domestic Equipment
North West Leicestershire District Council,31UH,Street Management,Environment Transport,ENOT,Certas Energy Uk Ltd,A043448,21/04/2021,1409317,"17,383.46",Fuel
North West Leicestershire District Council,31UH,Leisure & Culture,Sport & Physical Activity,SPA,Elite Training Solutions,A042233,21/04/2021,1409324,"1,260.00",First Aid Course
North West Leicestershire District Council,31UH,Leisure & Culture,Sport & Physical Activity,SPA,Elite Training Solutions,A042233,21/04/2021,1409325,650.00,First Aid Course
North West Leicestershire District Council,31UH,Street Management,Environment Transport,ENOT,Taylor Engineering & Fabrications Ltd,A036178,21/04/2021,1409380,379.96,Repairs - Parts
North West Leicestershire District Council,31UH,Street Management,Environment Transport,ENOT,Riverside Truck Rental Ltd,A045702,21/04/2021,1409478,"2,448.30",Hire of Transport
North West Leicestershire District Council,31UH,Street Management,Environment Transport,ENOT,Riverside Truck Rental Ltd,A045702,21/04/2021,1409479,"1,610.00",Hire Of Transport
North West Leicestershire District Council,31UH,Street Management,Environment Transport,ENOT,Enterprise Rent-A-Car UK Ltd,A046419,21/04/2021,1409556,616.84,Hire Of Transport
North West Leicestershire District Council,31UH,Street Management,Environment Transport,ENOT,Enterprise Rent-A-Car UK Ltd,A046419,21/04/2021,1409557,524.44,Hire Of Transport
North West Leicestershire District Council,31UH,Street Management,Environment Transport,ENOT,Enterprise Rent-A-Car UK Ltd,A046419,21/04/2021,1409558,524.44,Hire Of Transport
North West Leicestershire District Council,31UH,Street Management,Environment Transport,ENOT,Enterprise Rent-A-Car UK Ltd,A046419,21/04/2021,1409559,524.44,Hire Of Transport
North West Leicestershire District Council,31UH,Street Management,Environment Transport,ENOT,Enterprise Rent-A-Car UK Ltd,A046419,21/04/2021,1409560,616.84,Hire Of Transport
North West Leicestershire District Council,31UH,Street Management,Environment Transport,ENOT,Enterprise Rent-A-Car UK Ltd,A046419,21/04/2021,1409561,524.44,Hire Of Transport
North West Leicestershire District Council,31UH,Street Management,Environment Transport,ENOT,Enterprise Rent-A-Car UK Ltd,A046419,21/04/2021,1409562,616.84,Hire Of Transport
North West Leicestershire District Council,31UH,Street Management,Environment Transport,ENOT,Enterprise Rent-A-Car UK Ltd,A046419,21/04/2021,1409563,524.44,Hire Of Transport
North West Leicestershire District Council,31UH,Street Management,Environment Transport,ENOT,Enterprise Rent-A-Car UK Ltd,A046419,21/04/2021,1409564,524.44,Hire Of Transport
North West Leicestershire District Council,31UH,Street Management,Environment Transport,ENOT,Enterprise Rent-A-Car UK Ltd,A046419,21/04/2021,1409565,524.44,Hire Of Transport
North West Leicestershire District Council,31UH,Street Management,Environment Transport,ENOT,Enterprise Rent-A-Car UK Ltd,A046419,21/04/2021,1409566,616.84,Hire Of Transport
North West Leicestershire District Council,31UH,Street Management,Environment Transport,ENOT,Enterprise Rent-A-Car UK Ltd,A046419,21/04/2021,1409567,524.44,Hire Of Transport
North West Leicestershire District Council,31UH,Street Management,Environment Transport,ENOT,Enterprise Rent-A-Car UK Ltd,A046419,21/04/2021,1409568,616.84,Hire Of Transport
North West Leicestershire District Council,31UH,Street Management,Environment Parks,ENOP,Groundsman Tools & Supplies LLP,A030744,21/04/2021,1409590,373.63,Protective Clothing
North West Leicestershire District Council,31UH,Street Management,Environment Parks,ENOP,Regarde Security Ltd,A013049,21/04/2021,1409057,"3,400.00",Building Security
North West Leicestershire District Council,31UH,Street Management,Environment Parks,ENOP,Regarde Security Ltd,A013049,21/04/2021,1409058,490.50,Security Services
North West Leicestershire District Council,31UH,Information Technology,ICT Services,ICT,QA Ltd,A034064,21/04/2021,1409213,"2,325.00",Training Expenses
North West Leicestershire District Council,31UH,Street Management,Environment Parks,ENOP,John Merison BMC Ltd,A001092,21/04/2021,1409215,"1,058.17",Asset Protection
North West Leicestershire District Council,31UH,Environment Directorate,Environment - Directorate Support,ENVDS,Cenex Consultancy Services Limited,A046775,21/04/2021,1409230,"10,775.00",Consultants Fees
North West Leicestershire District Council,31UH,Street Management,Environment Transport,ENOT,PB Auto Electrics,A041120,21/04/2021,1409232,676.14,Non Scheduled Maintenance - Parts
North West Leicestershire District Council,31UH,Environmental Health,Environmental Health & Licensing,EEHL,Tennals Pest Control,A045705,21/04/2021,1409235,886.42,External Contractor Payments
North West Leicestershire District Council,31UH,Street Management,Environment Transport,ENOT,Calor Gas Limited,A032686,21/04/2021,1409264,"1,320.17",Gas
North West Leicestershire District Council,31UH,Street Management,Environment Transport,ENOT,J F Lloyd & Sons,A000991,21/04/2021,1409265,330.00,Hire Of Operational Equipment
North West Leicestershire District Council,31UH,Housing,HRA Housing Management,HRAHM,Aareon UK Ltd,A045197,21/04/2021,1409266,870.00,Contract Payments (Other) Ext
North West Leicestershire District Council,31UH,Street Management,Environment Parks,ENOP,Killgerm Chemicals Ltd,A000890,21/04/2021,1409274,268.11,Operational Purchases
North West Leicestershire District Council,31UH,Environmental Health,Environmental Health & Licensing,EEHL,Institute of Licensing Limited,A035655,21/04/2021,1409275,465.00,Training Expenses
North West Leicestershire District Council,31UH,Leisure & Culture,Sport & Physical Activity,SPA,Elliott Group Limited,A005413,21/04/2021,1409279,522.58,Secure and portable accomodation
North West Leicestershire District Council,31UH,Street Management,Environment Waste Management,ENOWM,One51 ES Plastics(UK) Ltd  t/a MGB Plastics,A044595,21/04/2021,1409283,"10,020.00",General Materials
North West Leicestershire District Council,31UH,Street Management,Environment Waste Management,ENOWM,Straight Plc,A024906,21/04/2021,1409288,"15,015.00",General Materials
North West Leicestershire District Council,31UH,Street Management,Environment Waste Management,ENOWM,Whitespace Work Software Ltd,A041243,21/04/2021,1409289,"14,478.00",Service Contracts
North West Leicestershire District Council,31UH,Information Technology,ICT Services,ICT,ESPO,A000958,21/04/2021,1409290,259.50,Gas
North West Leicestershire District Council,31UH,Street Management,Environment Parks,ENOP,Groundsman Tools & Supplies LLP,A030744,21/04/2021,1409321,339.60,Operational Purchases
North West Leicestershire District Council,31UH,Planning & Development,Environment - Development Control,EDC,Charnwood Borough Council,A000323,21/04/2021,1409328,"93,550.00",Payments To Contractor
North West Leicestershire District Council,31UH,Finance,Financial Planning,FINPLA,Macildowie Associates Ltd,A046022,21/04/2021,1409329,"1,918.66",Agency Staff
North West Leicestershire District Council,31UH,Finance,Financial Planning,FINPLA,Michael Page International Recruitment Ltd,A041893,21/04/2021,1409334,"2,100.00",Agency Staff
North West Leicestershire District Council,31UH,Information Technology,ICT Services,ICT,Six Degrees Technology Group Ltd,A044205,21/04/2021,1409337,"18,254.63",Admin Equipment - Maintenance
North West Leicestershire District Council,31UH,Property Services,Property Commercial Lettings,PROPCL,John Merison BMC Ltd,A001092,21/04/2021,1409346,"2,046.00",General Repairs
North West Leicestershire District Council,31UH,Housing,HRA Housing Management,HRAHM,IDP Group,A045557,21/04/2021,1409349,"6,526.20",Legal & Professional Services
North West Leicestershire District Council,31UH,Housing,HRA Housing Management,HRAHM,IDP Group,A045557,21/04/2021,1409350,"6,549.20",Legal & Professional Services
North West Leicestershire District Council,31UH,Street Management,Environment Transport,ENOT,Environment Agency,A044904,21/04/2021,1409355,"2,240.00",Licences
North West Leicestershire District Council,31UH,Street Management,Environment Transport,ENOT,Environment Agency,A044904,21/04/2021,1409356,"3,960.55",Licences
North West Leicestershire District Council,31UH,Chief Exec,Chief Executive,CHEX,Sable Leigh Consultancy Ltd T/A SLC Rail,A042727,21/04/2021,1409359,"1,312.50",Consultants Fees
North West Leicestershire District Council,31UH,Chief Exec,Chief Executive,CHEX,David Tucker Associates,A044236,21/04/2021,1409360,577.00,Advertising
North West Leicestershire District Council,31UH,Street Management,Environment Waste Management,ENOWM,ESE World Limited,A001253,21/04/2021,1409361,288.50,General Materials
North West Leicestershire District Council,31UH,Street Management,Environment - Street Scene,ESS,TMP Worldwide Ltd,A045319,21/04/2021,1409366,696.96,Legal & Professional Services
North West Leicestershire District Council,31UH,Finance,Housing Benefits,BENS,Capita Business Services Ltd,A002968,21/04/2021,1409375,"2,973.30",Revs & Bens expenditure funded by grants
North West Leicestershire District Council,31UH,Corporate Director,Human Resources,HR,InPhase Ltd,A044108,21/04/2021,1409376,963.00,Computing
North West Leicestershire District Council,31UH,Corporate Director,Human Resources,HR,InPhase Ltd,A044108,21/04/2021,1409377,500.00,Computing
North West Leicestershire District Council,31UH,Street Management,Environment Transport,ENOT,PR Horticultural Services Limited,A046639,21/04/2021,1409379,591.32,Non Scheduled Maintenance - Parts
North West Leicestershire District Council,31UH,Street Management,Environment Transport,ENOT,Ford Motor Company T/A Parts Plus,A045765,21/04/2021,1409391,410.56,Repairs - Parts
North West Leicestershire District Council,31UH,Street Management,Environment Transport,ENOT,Second 2 None,A031408,21/04/2021,1409484,"8,120.00",Contract Cleaning
North West Leicestershire District Council,31UH,Street Management,Environment Transport,ENOT,Trade Price Windscreens Ltd,A040486,21/04/2021,1409497,330.00,Non Scheduled Maintenance - Parts
North West Leicestershire District Council,31UH,Street Management,Environment Transport,ENOT,Lee Wells Autobodies Ltd,A031849,21/04/2021,1409500,498.90,Non Insurance Damage
North West Leicestershire District Council,31UH,Street Management,Environment Transport,ENOT,Malvern Tyres,A035175,21/04/2021,1409578,288.52,Transport Costs - Tyres
North West Leicestershire District Council,31UH,Street Management,Environment Transport,ENOT,Malvern Tyres,A035175,21/04/2021,1409581,408.24,Transport Costs - Tyres
North West Leicestershire District Council,31UH,Street Management,Environment Transport,ENOT,Midland Hydraulic Services Limited,A001106,21/04/2021,1409586,376.00,Repairs - Parts
North West Leicestershire District Council,31UH,Communications,Corporate - Communications,CP,Reflec Signs & Graphics Ltd,A025348,21/04/2021,1409352,"1,000.00",Event Expenditure
North West Leicestershire District Council,31UH,Street Management,Environment Transport,ENOT,Taylor Engineering & Fabrications Ltd,A036178,21/04/2021,1409495,487.94,Non Scheduled Maintenance - Parts
North West Leicestershire District Council,31UH,Street Management,Environment Transport,ENOT,Aebi Schmidt Uk Limited,A017053,21/04/2021,1409605,799.13,Non Scheduled Maintenance - Parts
North West Leicestershire District Council,31UH,Finance,Financial Planning,FINPLA,Zurich Municipal,A033807,21/04/2021,1409608,"1,360.00",Medical Fees
North West Leicestershire District Council,31UH,Finance,Financial Planning,FINPLA,Michael Page International Recruitment Ltd,A041893,21/04/2021,1409609,"5,460.00",Agency Staff
North West Leicestershire District Council,31UH,Street Management,Environment Transport,ENOT,Riverside Truck Rental Ltd,A045702,21/04/2021,1408822,"3,250.00",Hire Of Transport
North West Leicestershire District Council,31UH,Housing Repairs,HRA Housing Repairs & Maintenance,HRAHRM,Leicestershire County Council,A000950,21/04/2021,1409333,"2,686.15",Tipping Charges
North West Leicestershire District Council,31UH,Street Management,Environment Parks,ENOP,Timber-Link Fencing Ltd,A033297,21/04/2021,1409636,441.00,External Contractor Payments
North West Leicestershire District Council,31UH,Street Management,Environment Parks,ENOP,Timber-Link Fencing Ltd,A033297,21/04/2021,1409637,"1,674.00",External Contractor Payments
North West Leicestershire District Council,31UH,Street Management,Environment Transport,ENOT,Dennis Eagle Limited,A000522,21/04/2021,1409639,591.64,Repairs - Parts
North West Leicestershire District Council,31UH,Street Management,Environment Transport,ENOT,Ford Motor Company T/A Parts Plus,A045765,28/04/2021,1409390,415.95,Non Scheduled Maintenance - Parts
North West Leicestershire District Council,31UH,Street Management,Environment Transport,ENOT,Ford Motor Company T/A Parts Plus,A045765,28/04/2021,1409468,459.00,Non Scheduled Maintenance - Parts
North West Leicestershire District Council,31UH,Street Management,Environment Transport,ENOT,S & B Tyres Limited,A034071,28/04/2021,1409481,500.00,Transport Costs - Tyres
North West Leicestershire District Council,31UH,Street Management,Environment Transport,ENOT,Taylor Engineering & Fabrications Ltd,A036178,28/04/2021,1409492,401.90,Non Scheduled Maintenance - Parts
North West Leicestershire District Council,31UH,Street Management,Environment Transport,ENOT,Taylor Engineering & Fabrications Ltd,A036178,28/04/2021,1409493,453.31,Repairs - Parts
North West Leicestershire District Council,31UH,Street Management,Environment Transport,ENOT,Terberg Matec UK Limited,A001647,28/04/2021,1409496,572.22,Repairs - Parts
North West Leicestershire District Council,31UH,Street Management,Environment Transport,ENOT,Trade Price Windscreens Ltd,A040486,28/04/2021,1409498,270.00,Non Scheduled Maintenance - Parts
North West Leicestershire District Council,31UH,Street Management,Environment Transport,ENOT,Trade Price Windscreens Ltd,A040486,28/04/2021,1409499,330.00,Non Scheduled Maintenance - Parts
North West Leicestershire District Council,31UH,Street Management,Environment Transport,ENOT,Hako Machines Limited,A034237,28/04/2021,1409575,334.24,Repairs - Parts
North West Leicestershire District Council,31UH,Street Management,Environment Transport,ENOT,Terberg Matec UK Limited,A001647,28/04/2021,1408957,262.44,Repairs - Parts
North West Leicestershire District Council,31UH,Corporate Director,Human Resources,HR,HR Training & Development,A046702,28/04/2021,1409602,990.00,Training Expenses
North West Leicestershire District Council,31UH,Housing,HRA Older Persons Service,HRAOPS,Tunstall Healthcare (UK) Limited,A001701,28/04/2021,1409665,749.40,Alarm System Telephones
North West Leicestershire District Council,31UH,Street Management,Environment Parks,ENOP,Tudor UK Ltd  (trading as Tudor Environmental),A043777,28/04/2021,1409671,495.00,Operational Purchases
North West Leicestershire District Council,31UH,Housing Strategy,Community - Housing Strategy,HS,The Baikie-Wood Consultancy Ltd,A046720,28/04/2021,1409678,475.00,Training Expenses
North West Leicestershire District Council,31UH,Street Management,Environment Transport,ENOT,Westbury Industrial Supplies Limited,A009933,28/04/2021,1409693,425.00,Protective Clothing
North West Leicestershire District Council,31UH,Information Technology,ICT Services,ICT,ACS Systems (UK) Ltd T/a ACS Office Solutions,A043447,28/04/2021,1409694,856.00,Legal & Professional Services
North West Leicestershire District Council,31UH,Street Management,Environment Transport,ENOT,ACS Systems (UK) Ltd T/a ACS Office Solutions,A043447,28/04/2021,1409696,"1,255.00",Operational Equipment
North West Leicestershire District Council,31UH,Housing,HRA Housing Management,HRAHM,GatenbySanderson Limited,A034524,28/04/2021,1409706,"2,840.00",Employee Advertising
North West Leicestershire District Council,31UH,Street Management,Environment Transport,ENOT,Certas Energy Uk Ltd,A043448,28/04/2021,1409735,605.64,Fuel
North West Leicestershire District Council,31UH,Information Technology,ICT Services,ICT,ACS Systems (UK) Ltd T/a ACS Office Solutions,A043447,28/04/2021,1409751,"1,415.00",Operational Equipment
North West Leicestershire District Council,31UH,Housing Strategy,Community - Housing Strategy,HS,MRC Community Action,A001208,28/04/2021,1407983,335.00,Homeless prevention Expenditure
North West Leicestershire District Council,31UH,Environmental Health,Environmental Health & Licensing,EEHL,Eville And Jones Limited,A033670,28/04/2021,1409675,740.29,Vet Inspection
North West Leicestershire District Council,31UH,Leisure & Culture,Cultural Services Arts & Events,CULTEV,JB Tool Hire Ltd,A011490,28/04/2021,1409691,340.00,Special Events
North West Leicestershire District Council,31UH,Housing Strategy,Community - Housing Strategy,HS,MRC Community Action,A001208,28/04/2021,1409755,575.90,Homeless prevention Expenditure
North West Leicestershire District Council,31UH,Street Management,Environment Transport,ENOT,Riverside Truck Rental Ltd,A045702,28/04/2021,1409764,429.50,Non Insurance Damage
North West Leicestershire District Council,31UH,Street Management,Environment Waste Management,ENOWM,Norwood Press,A042636,28/04/2021,1409769,385.00,Publicity & Promotion
North West Leicestershire District Council,31UH,Street Management,Environment Waste Management,ENOWM,Norwood Press,A042636,28/04/2021,1409770,"1,259.00",Publicity & Promotion
North West Leicestershire District Council,31UH,Street Management,Environment Parks,ENOP,Vitax Limited,A031093,28/04/2021,1409771,339.17,Operational Purchases
North West Leicestershire District Council,31UH,Street Management,Environment Transport,ENOT,Coalville Cleaning Services,A003037,28/04/2021,1409774,"1,464.75",Contract Cleaning
North West Leicestershire District Council,31UH,Finance,Financial Planning,FINPLA,Sports & Leisure Management Ltd,A045556,28/04/2021,1409784,"19,684.72",Payments To Contractor
North West Leicestershire District Council,31UH,Finance,Financial Planning,FINPLA,Macildowie Associates Ltd,A046022,28/04/2021,1409788,"1,446.95",Agency Staff
North West Leicestershire District Council,31UH,Finance,Financial Planning,FINPLA,Macildowie Associates Ltd,A046022,28/04/2021,1409790,"2,087.94",Agency Staff
North West Leicestershire District Council,31UH,Street Management,Environment Transport,ENOT,J F Lloyd & Sons,A000991,28/04/2021,1409686,330.00,Hire Of Operational Equipment
North West Leicestershire District Council,31UH,Corporate Director,Human Resources,HR,EMB Excellence Limited,A039939,28/04/2021,1409920,"1,523.08",Corporate Training
North West Leicestershire District Council,31UH,Property Services,Property Facilities Management,PROPFM,Calbarrie Ltd,A021932,28/04/2021,1407986,"1,028.50",General Repairs
North West Leicestershire District Council,31UH,Street Management,Environment Parks,ENOP,Hilton Carp Sales,A045968,28/04/2021,1408999,"1,040.00",General Repairs
North West Leicestershire District Council,31UH,Leisure & Culture,Cultural Services Arts & Events,CULTEV,David Walker,A038828,28/04/2021,1409326,"1,032.50",Event Expenditure
North West Leicestershire District Council,31UH,Housing Repairs,HRA Housing Repairs & Maintenance,HRAHRM,Leicestershire County Council,A000950,28/04/2021,1409330,"2,332.26",Tipping Charges
North West Leicestershire District Council,31UH,Housing Repairs,HRA Housing Repairs & Maintenance,HRAHRM,Leicestershire County Council,A000950,28/04/2021,1409331,"2,546.00",Tipping Charges
North West Leicestershire District Council,31UH,Street Management,Environment Waste Management,ENOWM,Leicestershire County Council,A000950,28/04/2021,1409351,"60,106.77",Trade Refuse Disposal Costs
North West Leicestershire District Council,31UH,Street Management,Environment Parks,ENOP,Midlands Parks Forum,A046139,28/04/2021,1409362,259.00,Operational Purchases
North West Leicestershire District Council,31UH,Housing,HRA Performance & Business Support,HRAPBS,Marsh Limited,A042169,28/04/2021,1409664,"10,889.93",Insurance - Tenants Contributions
North West Leicestershire District Council,31UH,Chief Exec,Chief Executive,CHEX,Edwards & Edwards Consultancy Ltd,A041694,28/04/2021,1409672,360.00,Consultants Fees
North West Leicestershire District Council,31UH,Street Management,Environment - Street Scene,ESS,Ivy Legal Limited,A046810,28/04/2021,1409673,750.00,Training Expenses
North West Leicestershire District Council,31UH,Street Management,Environment Parks,ENOP,Dura-Sport,A016357,28/04/2021,1409701,294.50,Operational Purchases
North West Leicestershire District Council,31UH,Chief Exec,Chief Executive,CHEX,Edwards & Edwards Consultancy Ltd,A041694,28/04/2021,1409702,"2,295.00",Legal & Professional Services
North West Leicestershire District Council,31UH,Chief Exec,Chief Executive,CHEX,PTTP Planning Services,A046531,28/04/2021,1409703,"5,000.00",Interim Support
North West Leicestershire District Council,31UH,Planning & Development,Environment - Town Centre/CCTV,ECCTV,Restore Technology,A046676,28/04/2021,1409801,"1,999.00",Consultants Fees
North West Leicestershire District Council,31UH,Housing Repairs,HRA Housing Repairs & Maintenance,HRAHRM,Citron Hygiene,A040930,28/04/2021,1408122,599.70,Consumable Materials
North West Leicestershire District Council,31UH,Corporate Director,Human Resources,HR,Health Management Ltd,A038840,28/04/2021,1409704,266.50,Medical Fees
North West Leicestershire District Council,31UH,Information Technology,ICT Services,ICT,Freedom Communications (UK) Ltd,A032826,28/04/2021,1409777,850.00,Administrative Equipment
North West Leicestershire District Council,31UH,Street Management,Environment Transport,ENOT,Selby's Garage (Woodhouse) Ltd,A044011,28/04/2021,1409809,329.12,Hire Of Operational Equipment
North West Leicestershire District Council,31UH,Information Technology,ICT Services,ICT,ACS Systems (UK) Ltd T/a ACS Office Solutions,A043447,28/04/2021,1409811,"1,700.00",Computing
North West Leicestershire District Council,31UH,Street Management,Environment - Street Scene,ESS,Coalville Cleaning Services,A003037,28/04/2021,1409812,530.10,Contract Cleaning
North West Leicestershire District Council,31UH,Street Management,Environment Waste Management,ENOWM,Weir & Carmichael Ltd,A032788,28/04/2021,1409813,"15,775.20",General Materials
North West Leicestershire District Council,31UH,Street Management,Environment Transport,ENOT,J F Lloyd & Sons,A000991,28/04/2021,1409818,330.00,Hire Of Operational Equipment
North West Leicestershire District Council,31UH,Planning & Development,Environment Community Planning,ECP,Age UK Leics & Rutland,A041115,28/04/2021,1409819,"10,995.00",Grants
North West Leicestershire District Council,31UH,Planning & Development,Environment - Development Control,EDC,TMP Worldwide Ltd,A045319,28/04/2021,1409820,503.12,Advertising
North West Leicestershire District Council,31UH,Planning & Development,Environment - Development Control,EDC,TMP Worldwide Ltd,A045319,28/04/2021,1409822,433.18,Advertising
North West Leicestershire District Council,31UH,Housing,HRA Older Persons Service,HRAOPS,Tunstall Healthcare (UK) Limited,A001701,28/04/2021,1409798,677.49,Alarm System Telephones
North West Leicestershire District Council,31UH,Corporate Director,Human Resources,HR,Halfords,A028298,28/04/2021,1409914,"1,345.83",Operational Equipment
North West Leicestershire District Council,31UH,Street Management,Environment Parks,ENOP,JB Tool Hire Ltd,A011490,28/04/2021,1407107,630.00,Operational Purchases
North West Leicestershire District Council,31UH,Housing Repairs,HRA Housing Repairs & Maintenance,HRAHRM,NICEIC Sales,A026251,07/04/2021,1408785,475.00,AC901 Annual Fee
North West Leicestershire District Council,31UH,Economic Development,Business Focus Group,BFG,Swepstone Church Hall,A034559,07/04/2021,1408788,500.00,Grants
North West Leicestershire District Council,31UH,Economic Development,Business Focus Group,BFG,Appleby Village Football Club,A046783,07/04/2021,1408789,382.54,Grants
North West Leicestershire District Council,31UH,Economic Development,Business Focus Group,BFG,Phoenix Children's Foundation,A045052,07/04/2021,1408790,500.00,Grants
North West Leicestershire District Council,31UH,Economic Development,Business Focus Group,BFG,Packington Cricket Club,A046784,07/04/2021,1408791,500.00,Grants
North West Leicestershire District Council,31UH,Economic Development,Business Focus Group,BFG,Above & Beyond CIC,A044414,07/04/2021,1408792,500.00,Grants
North West Leicestershire District Council,31UH,Economic Development,Business Focus Group,BFG,Without Walls Christian Fellowship,A035916,07/04/2021,1408793,500.00,Grants
North West Leicestershire District Council,31UH,Street Management,Environment Transport,ENOT,SR Signs,A032978,07/04/2021,1408794,"2,548.00",Non Insurance Damage
North West Leicestershire District Council,31UH,Economic Development,Business Focus Group,BFG,"Hugglescote, Donington & Coalville Community Hub",A046785,07/04/2021,1408795,"1,000.00",Grants
North West Leicestershire District Council,31UH,Legal & Democratic,Legal Services,LDLS,Browne Jacobson LLP,A042988,07/04/2021,1408797,"1,168.00",Legal & Professional Services
North West Leicestershire District Council,31UH,Legal & Democratic,Legal Services,LDLS,Browne Jacobson LLP,A042988,07/04/2021,1408798,"2,723.50",Legal & Professional Services
North West Leicestershire District Council,31UH,Legal & Democratic,Legal Services,LDLS,Cornerstone Barristers,A039753,07/04/2021,1408799,785.00,Legal & Professional Services
North West Leicestershire District Council,31UH,Legal & Democratic,Legal Services,LDLS,Cornerstone Barristers,A039753,07/04/2021,1408800,975.00,Legal & Professional Services
North West Leicestershire District Council,31UH,Housing,HRA Housing Management,HRAHM,Redacted - Personal Data,A046786,07/04/2021,1408801,"2,000.00",Under Occupancy Incentives
North West Leicestershire District Council,31UH,Housing Strategy,Community - Housing Strategy,HS,EMH Homes,A039302,07/04/2021,1408804,"3,680.00",Grants
North West Leicestershire District Council,31UH,Finance,Exchequer Services,EXCH,Comensura Limited,A036958,07/04/2021,1408826,"21,290.20",Agency Staff
North West Leicestershire District Council,31UH,Housing Repairs,HRA Housing Repairs & Maintenance,HRAHRM,Driscoll Kingston Solicitors,A046789,07/04/2021,1408833,"2,500.00",Legal & Professional Services
North West Leicestershire District Council,31UH,Housing Strategy,Community - Housing Strategy,HS,EMH Homes,A039302,07/04/2021,1408864,"9,355.00",Grants
North West Leicestershire District Council,31UH,Legal & Democratic,Legal Services,LDLS,No 5 Chambers Ltd,A022238,07/04/2021,1408928,"1,125.00",Legal & Professional Services
North West Leicestershire District Council,31UH,Information Technology,ICT Services,ICT,EE Ltd (Airtime),A018592,07/04/2021,1408931,"2,576.62",Mobile Telephones
North West Leicestershire District Council,31UH,Information Technology,ICT Services,ICT,EE Ltd (Airtime),A018592,07/04/2021,1408932,"4,389.10",Mobile Telephones
North West Leicestershire District Council,31UH,Economic Development,Business Focus Group,BFG,Redacted - Personal Data,A046796,07/04/2021,1408958,250.00,Grants
North West Leicestershire District Council,31UH,Economic Development,Business Focus Group,BFG,Building Business Consultancy Ltd,A045433,07/04/2021,1408967,"3,333.33",Consultants Fees
North West Leicestershire District Council,31UH,Housing,HRA Housing Management,HRAHM,JLA Limited,A043639,07/04/2021,1408971,282.00,Cleaning & Domestic Equipment
North West Leicestershire District Council,31UH,Housing Repairs,HRA Housing Repairs & Maintenance,HRAHRM,Emperor Scaffolding Limited,A038405,07/04/2021,1408973,800.00,Hire Of Operational Equipment
North West Leicestershire District Council,31UH,Housing,HRA Housing Management,HRAHM,JLA Limited,A043639,07/04/2021,1408974,427.84,Cleaning & Domestic Equipment
North West Leicestershire District Council,31UH,Property Services,Property Facilities Management,PROPFM,British Telecommunications Plc,A000233,07/04/2021,1408979,556.17,Telephones
North West Leicestershire District Council,31UH,Housing,HRA Housing Management,HRAHM,Leicestershire County Council,A000950,14/04/2021,1398753,"1,104.60",Training Expenses
North West Leicestershire District Council,31UH,Legal & Democratic,Legal Services,LDLS,Freeths LLP,A038047,14/04/2021,1409006,"1,244.50",Advertising
North West Leicestershire District Council,31UH,Finance,Exchequer Services,EXCH,Click Travel Ltd,A044308,14/04/2021,1409009,"2,920.50",Travel and Subsistence
North West Leicestershire District Council,31UH,Housing,HRA Housing Management,HRAHM,Redacted - Personal Data,A045398,14/04/2021,1409013,250.00,Under Occupancy Incentives
North West Leicestershire District Council,31UH,Housing,HRA Housing Management,HRAHM,Redacted - Personal Data,A046800,14/04/2021,1409014,250.00,Under Occupancy Incentives
North West Leicestershire District Council,31UH,Finance,Exchequer Services,EXCH,Comensura Limited,A036958,14/04/2021,1409017,"15,613.13",Agency Staff
North West Leicestershire District Council,31UH,Finance,Exchequer Services,EXCH,Click Travel Ltd,A044308,14/04/2021,1409018,"3,582.76",Travel and Subsistence
North West Leicestershire District Council,31UH,Street Management,Environment Parks,ENOP,Leicestershire County Council,A000950,14/04/2021,1409033,434.29,Contract Cleaning
North West Leicestershire District Council,31UH,Street Management,Environment Parks,ENOP,Leicestershire County Council,A000950,14/04/2021,1409034,404.13,Contract Cleaning
North West Leicestershire District Council,31UH,Street Management,Environment Parks,ENOP,Leicestershire County Council,A000950,14/04/2021,1409035,309.63,Contract Cleaning
North West Leicestershire District Council,31UH,Housing Repairs,HRA Housing Repairs & Maintenance,HRAHRM,Sure Maintenance Ltd,A040460,14/04/2021,1409037,"18,566.20",Plumbing & Heating
North West Leicestershire District Council,31UH,Housing Repairs,HRA Housing Repairs & Maintenance,HRAHRM,Sure Maintenance Ltd,A040460,14/04/2021,1409038,778.65,Plumbing & Heating
North West Leicestershire District Council,31UH,Housing Repairs,HRA Housing Repairs & Maintenance,HRAHRM,Sure Maintenance Ltd,A040460,14/04/2021,1409039,"2,551.06",Plumbing & Heating
North West Leicestershire District Council,31UH,Housing Repairs,HRA Housing Repairs & Maintenance,HRAHRM,Sure Maintenance Ltd,A040460,14/04/2021,1409040,"40,270.62",Plumbing & Heating
North West Leicestershire District Council,31UH,Housing Repairs,HRA Housing Repairs & Maintenance,HRAHRM,Sure Maintenance Ltd,A040460,14/04/2021,1409041,955.79,Plumbing & Heating
North West Leicestershire District Council,31UH,Housing Repairs,HRA Housing Repairs & Maintenance,HRAHRM,Morgan Lambert Limited,A044192,14/04/2021,1409079,638.40,Servicing
North West Leicestershire District Council,31UH,Housing Repairs,HRA Housing Repairs & Maintenance,HRAHRM,Dodd Group (Midlands) Limited,A036692,14/04/2021,1409080,"4,964.81",Electrical
North West Leicestershire District Council,31UH,Housing Repairs,HRA Housing Repairs & Maintenance,HRAHRM,SGS United Kingdom Limited,A044203,14/04/2021,1409081,"1,992.37",Legal & Professional Services
North West Leicestershire District Council,31UH,Housing Repairs,HRA Housing Repairs & Maintenance,HRAHRM,Morgan Lambert Limited,A044192,14/04/2021,1409082,319.20,Servicing
North West Leicestershire District Council,31UH,Housing Repairs,HRA Housing Repairs & Maintenance,HRAHRM,Morgan Lambert Limited,A044192,14/04/2021,1409083,319.20,Servicing
North West Leicestershire District Council,31UH,Housing Repairs,HRA Housing Repairs & Maintenance,HRAHRM,Morgan Lambert Limited,A044192,14/04/2021,1409084,300.00,Servicing
North West Leicestershire District Council,31UH,Housing Repairs,HRA Housing Repairs & Maintenance,HRAHRM,Morgan Lambert Limited,A044192,14/04/2021,1409085,478.80,Servicing
North West Leicestershire District Council,31UH,Housing Repairs,HRA Housing Repairs & Maintenance,HRAHRM,Morgan Lambert Limited,A044192,14/04/2021,1409086,399.00,Servicing
North West Leicestershire District Council,31UH,Housing Repairs,HRA Housing Repairs & Maintenance,HRAHRM,Sure Maintenance Ltd,A040460,14/04/2021,1409087,"18,187.91",Plumbing & Heating
North West Leicestershire District Council,31UH,Housing Repairs,HRA Housing Repairs & Maintenance,HRAHRM,Sure Maintenance Ltd,A040460,14/04/2021,1409088,808.42,Plumbing & Heating
North West Leicestershire District Council,31UH,Housing Repairs,HRA Housing Repairs & Maintenance,HRAHRM,Sure Maintenance Ltd,A040460,14/04/2021,1409089,"2,479.89",Plumbing & Heating
North West Leicestershire District Council,31UH,Housing Repairs,HRA Housing Repairs & Maintenance,HRAHRM,Sure Maintenance Ltd,A040460,14/04/2021,1409090,"9,066.60",Plumbing & Heating
North West Leicestershire District Council,31UH,Housing,HRA Housing Management,HRAHM,JLA Limited,A043639,14/04/2021,1409093,412.00,Cleaning & Domestic Equipment
North West Leicestershire District Council,31UH,Street Management,Environment - Street Scene,ESS,Leicestershire County Council,A000950,14/04/2021,1409094,"1,764.53",Parking Fees
North West Leicestershire District Council,31UH,Housing,HRA Housing Management,HRAHM,Tennals Pest Control,A045705,14/04/2021,1409112,825.00,Pest Control
North West Leicestershire District Council,31UH,Planning & Development,Environment - Development Control,EDC,No 5 Chambers Ltd,A022238,14/04/2021,1409114,"1,000.00",External Legal Fees & Advice
North West Leicestershire District Council,31UH,Legal & Democratic,Legal Services,LDLS,Thomson Reuters (Professional) UK Limited,A037595,14/04/2021,1409118,"1,171.77",Computing
North West Leicestershire District Council,31UH,Communications,Corporate - Customer Services,CS,Quadient UK Ltd,A000079,14/04/2021,1409128,"5,000.00",Postages
North West Leicestershire District Council,31UH,Finance,Financial Planning,FINPLA,Water Plus Limited,A044043,14/04/2021,1409133,"1,153.65",Water Charges (Metered)
North West Leicestershire District Council,31UH,Housing Repairs,HRA Housing Repairs & Maintenance,HRAHRM,Sure Maintenance Ltd,A040460,14/04/2021,1409225,"12,693.24",Plumbing & Heating
North West Leicestershire District Council,31UH,Housing Repairs,HRA Housing Repairs & Maintenance,HRAHRM,Sure Maintenance Ltd,A040460,14/04/2021,1409226,"1,598.63",Plumbing & Heating
North West Leicestershire District Council,31UH,Housing Repairs,HRA Housing Repairs & Maintenance,HRAHRM,Sure Maintenance Ltd,A040460,14/04/2021,1409227,"3,176.59",Plumbing & Heating
North West Leicestershire District Council,31UH,Legal & Democratic,Legal Services,LDLS,Browne Jacobson LLP,A042988,14/04/2021,1409242,"2,537.50",Legal & Professional Services
North West Leicestershire District Council,31UH,Legal & Democratic,Legal Services,LDLS,Browne Jacobson LLP,A042988,14/04/2021,1409243,"1,389.50",Legal & Professional Services
North West Leicestershire District Council,31UH,Finance,Exchequer Services,EXCH,Comensura Limited,A036958,14/04/2021,1409245,"31,182.48",Agency Staff
North West Leicestershire District Council,31UH,Finance,Exchequer Services,EXCH,HM Revenues & Customs,A038465,14/04/2021,1409247,"1,613.00",Payment To Inland Revenue
North West Leicestershire District Council,31UH,Finance,Financial Planning,FINPLA,Browne Jacobson LLP,A000133,15/04/2021,1409296,"125,550.00",Acquisition - Land and Buildings
North West Leicestershire District Council,31UH,Finance,Revenues,REVS,Redacted - Personal Data,A000133,15/04/2021,1409297,500.00,Test and Trace Payment
North West Leicestershire District Council,31UH,Finance,Revenues,REVS,Redacted - Personal Data,A000133,15/04/2021,1409298,500.00,Test and Trace Payment
North West Leicestershire District Council,31UH,Finance,Revenues,REVS,Redacted - Personal Data,A000133,15/04/2021,1409299,500.00,Test and Trace Payment
North West Leicestershire District Council,31UH,Finance,Revenues,REVS,Redacted - Personal Data,A000133,15/04/2021,1409300,500.00,Test and Trace Payment
North West Leicestershire District Council,31UH,Communications,Corporate - Communications,CP,Quadient UK Ltd,A000079,15/04/2021,1409301,"1,000.00",Postages
North West Leicestershire District Council,31UH,Finance,Exchequer Services,EXCH,ESPO,A000958,15/04/2021,1409310,"9,980.97",Gas
North West Leicestershire District Council,31UH,Legal & Democratic,Legal Services,LDLS,Trowers & Hamlins,A031241,21/04/2021,1409251,"5,000.00",Legal & Professional Services
North West Leicestershire District Council,31UH,Finance,Exchequer Services,EXCH,Click Travel Ltd,A044308,21/04/2021,1409306,"2,782.06",Travel and Subsistence
North West Leicestershire District Council,31UH,Property Services,Property Commercial Lettings,PROPCL,BES Commercial Electricity Ltd,A042405,21/04/2021,1409311,319.55,General Repairs
North West Leicestershire District Council,31UH,Environmental Health,Environmental Health & Licensing,EEHL,Animal Care Services Limited,A046488,21/04/2021,1409335,"2,322.50",Stray Dog Service
North West Leicestershire District Council,31UH,Economic Development,Business Focus Group,BFG,Redacted - Personal Data,A046812,21/04/2021,1409367,250.00,Grants
North West Leicestershire District Council,31UH,Housing Strategy,Community - Housing Strategy,HS,P3- People Potential Possibilities,A046599,21/04/2021,1409365,448.70,Grants
North West Leicestershire District Council,31UH,Housing Repairs,HRA Housing Repairs & Maintenance,HRAHRM,Dalrod UK Ltd,A046051,21/04/2021,1409597,"8,796.71",Drainage
North West Leicestershire District Council,31UH,Street Management,Environment - Street Scene,ESS,Water Plus Limited,A044043,21/04/2021,1409599,517.31,Sewerage & Environmental
North West Leicestershire District Council,31UH,Economic Development,Business Focus Group,BFG,Scotlands Bowls Club,A046813,21/04/2021,1409607,500.00,Grants
North West Leicestershire District Council,31UH,Housing,HRA Housing Management,HRAHM,Capita Business Services Ltd,A002968,21/04/2021,1409640,"46,071.70",Security Services
North West Leicestershire District Council,31UH,Finance,Financial Planning,FINPLA,Measham Parish Council,A000133,22/04/2021,1409641,660.00,Section 106 Payment
North West Leicestershire District Council,31UH,Finance,Financial Planning,FINPLA,Heather Parish Council,A000133,22/04/2021,1409642,"21,975.00",Recreation & Play Areas
North West Leicestershire District Council,31UH,Finance,Exchequer Services,EXCH,ESPO,A000958,22/04/2021,1409643,"9,918.65",Gas
North West Leicestershire District Council,31UH,Finance,Revenues,REVS,Redacted - Personal Data,A000133,22/04/2021,1409644,500.00,Test and Trace Payment
North West Leicestershire District Council,31UH,Communications,Corporate - Communications,CP,Quadient UK Ltd,A000079,22/04/2021,1409648,"5,000.00",Postages
North West Leicestershire District Council,31UH,Finance,Financial Planning,FINPLA,Appleby Magna Parish Council,A000060,28/04/2021,1409708,"12,500.00",Precepts
North West Leicestershire District Council,31UH,Finance,Financial Planning,FINPLA,Ashby De La Zouch Town Council,A000091,28/04/2021,1409709,"257,404.17",Precepts
North West Leicestershire District Council,31UH,Finance,Financial Planning,FINPLA,Ashby Woulds Town Council,A000089,28/04/2021,1409710,"59,308.50",Precepts
North West Leicestershire District Council,31UH,Finance,Financial Planning,FINPLA,Belton Parish Council,A000164,28/04/2021,1409711,"15,000.00",Precepts
North West Leicestershire District Council,31UH,Finance,Financial Planning,FINPLA,Breedon On The Hill Parish Council,A000215,28/04/2021,1409712,"13,236.00",Precepts
North West Leicestershire District Council,31UH,Finance,Financial Planning,FINPLA,Castle Donington Parish Council,A000300,28/04/2021,1409713,"189,099.00",Precepts
North West Leicestershire District Council,31UH,Finance,Financial Planning,FINPLA,Charley Parish Council,A000322,28/04/2021,1409714,"4,006.50",Precepts
North West Leicestershire District Council,31UH,Finance,Financial Planning,FINPLA,Coleorton Parish Council,A000382,28/04/2021,1409715,"7,174.00",Precepts
North West Leicestershire District Council,31UH,Finance,Financial Planning,FINPLA,Ellistown And Battleflat Parish Council,A021576,28/04/2021,1409716,"33,719.60",Precepts
North West Leicestershire District Council,31UH,Finance,Financial Planning,FINPLA,Heather Parish Council,A000749,28/04/2021,1409717,"6,750.00",Precepts
North West Leicestershire District Council,31UH,Finance,Financial Planning,FINPLA,Hugglescote & Donington Le Heath,A038616,28/04/2021,1409718,"62,202.50",Precepts
North West Leicestershire District Council,31UH,Finance,Financial Planning,FINPLA,Ibstock Parish Council,A000807,28/04/2021,1409719,"125,000.00",Precepts
North West Leicestershire District Council,31UH,Finance,Financial Planning,FINPLA,Kegworth Parish Council,A000882,28/04/2021,1409721,"58,090.15",Precepts
North West Leicestershire District Council,31UH,Finance,Financial Planning,FINPLA,Lockington Cum Hemington PC,A000999,28/04/2021,1409722,"9,000.00",Precepts
North West Leicestershire District Council,31UH,Finance,Financial Planning,FINPLA,Long Whatton & Diseworth PC,A001010,28/04/2021,1409723,"21,141.00",Precepts
North West Leicestershire District Council,31UH,Finance,Financial Planning,FINPLA,Measham Parish Council,A014805,28/04/2021,1409724,"58,558.00",Precepts
North West Leicestershire District Council,31UH,Finance,Financial Planning,FINPLA,"Oakthorpe, Donisthorpe & Acresford Parish Council",A001234,28/04/2021,1409725,"40,500.00",Precepts
North West Leicestershire District Council,31UH,Finance,Financial Planning,FINPLA,Osgathorpe Parish Council,A001251,28/04/2021,1409726,"2,328.93",Precepts
North West Leicestershire District Council,31UH,Finance,Financial Planning,FINPLA,Packington Parish Council,A001257,28/04/2021,1409727,"11,254.00",Precepts
North West Leicestershire District Council,31UH,Finance,Financial Planning,FINPLA,Ravenstone With Snibston PC,A001364,28/04/2021,1409728,"37,500.00",Precepts
North West Leicestershire District Council,31UH,Finance,Financial Planning,FINPLA,Snarestone Parish Council,A001524,28/04/2021,1409729,"5,000.00",Precepts
North West Leicestershire District Council,31UH,Finance,Financial Planning,FINPLA,Swannington Parish Council,A001608,28/04/2021,1409730,"15,918.50",Precepts
North West Leicestershire District Council,31UH,Finance,Financial Planning,FINPLA,Swepstone Parish Council,A001613,28/04/2021,1409731,"8,750.00",Precepts
North West Leicestershire District Council,31UH,Finance,Financial Planning,FINPLA,Whitwick Parish Council,A038617,28/04/2021,1409732,"135,970.50",Precepts
North West Leicestershire District Council,31UH,Finance,Financial Planning,FINPLA,Worthington Parish Council,A001813,28/04/2021,1409733,"11,500.00",Precepts
North West Leicestershire District Council,31UH,Street Management,Environment Transport,ENOT,Parkers The Parts People,A044935,28/04/2021,1409658,664.95,Oil and Lubricants
North West Leicestershire District Council,31UH,Legal & Democratic,Legal Services,LDLS,MBL Seminars Limited,A041430,28/04/2021,1409736,540.00,Training Expenses
North West Leicestershire District Council,31UH,Legal & Democratic,Legal Services,LDLS,MBL Seminars Limited,A041430,28/04/2021,1409737,625.00,Training Expenses
North West Leicestershire District Council,31UH,Housing,HRA Housing Management,HRAHM,JLA Limited,A043639,28/04/2021,1409739,442.00,Cleaning & Domestic Equipment
North West Leicestershire District Council,31UH,Housing,HRA Housing Management,HRAHM,JLA Limited,A043639,28/04/2021,1409740,302.00,Cleaning & Domestic Equipment
North West Leicestershire District Council,31UH,Housing,HRA Housing Management,HRAHM,JLA Limited,A043639,28/04/2021,1409742,282.00,Cleaning & Domestic Equipment
North West Leicestershire District Council,31UH,Economic Development,Business Focus Group,BFG,Measham Mobility Bus,A042948,28/04/2021,1409744,"1,000.00",Grants
North West Leicestershire District Council,31UH,Economic Development,Business Focus Group,BFG,Heart of the Forest Heritage,A046824,28/04/2021,1409746,500.00,Grants
North West Leicestershire District Council,31UH,Economic Development,Business Focus Group,BFG,Ellistown Football Club,A046823,28/04/2021,1409747,500.00,Grants
North West Leicestershire District Council,31UH,Economic Development,Business Focus Group,BFG,Castle Donington Football Club,A046822,28/04/2021,1409748,500.00,Grants
North West Leicestershire District Council,31UH,Economic Development,Business Focus Group,BFG,Stroke and Disability Group - Measham,A046821,28/04/2021,1409749,495.00,Grants
North West Leicestershire District Council,31UH,Economic Development,Business Focus Group,BFG,MRC Community Action,A001208,28/04/2021,1409756,"1,824.00",Early Intervention Fund
North West Leicestershire District Council,31UH,Economic Development,Business Focus Group,BFG,Woodstock in Whitwick,A044459,28/04/2021,1409757,"1,000.00",Grants
North West Leicestershire District Council,31UH,Economic Development,Business Focus Group,BFG,Scotlands Bowls Club,A046813,28/04/2021,1409759,435.64,Grants
North West Leicestershire District Council,31UH,Finance,Exchequer Services,EXCH,Comensura Limited,A036958,28/04/2021,1409785,"24,104.25",Agency Staff
North West Leicestershire District Council,31UH,Economic Development,Business Focus Group,BFG,Ebenezer Baptist Church,A043465,28/04/2021,1409791,650.00,Grants
North West Leicestershire District Council,31UH,Economic Development,Business Focus Group,BFG,Ashby De La Zouch Town Council,A000091,28/04/2021,1409792,380.00,Grants
North West Leicestershire District Council,31UH,Finance,Exchequer Services,EXCH,Click Travel Ltd,A044308,28/04/2021,1409795,"4,547.14",Travel and Subsistence
North West Leicestershire District Council,31UH,Housing,HRA Housing Management,HRAHM,Redacted - Personal Data,A046829,28/04/2021,1409799,250.00,Surveillance
North West Leicestershire District Council,31UH,Corporate Director,Human Resources,HR,Stormguard Floodplan Ltd,A046153,28/04/2021,1409910,"3,336.60",Grants
North West Leicestershire District Council,31UH,Economic Development,Business Focus Group,BFG,Macit Pekacet,A046403,28/04/2021,1409916,"35,025.00",Coalville Shop Front Grant Scheme
North West Leicestershire District Council,31UH,Housing,HRA Housing Management,HRAHM,Redacted - Personal Data,A046839,28/04/2021,1409921,250.00,Surveillance
North West Leicestershire District Council,31UH,Housing Repairs,HRA Housing Repairs & Maintenance,HRAHRM,Citron Hygiene,A040930,28/04/2021,1409654,599.70,Operational Purchases
North West Leicestershire District Council,31UH,Housing Repairs,HRA Housing Repairs & Maintenance,HRAHRM,Laker BMS Ltd,A031787,21/04/2021,1409613,"5,034.72",Plumbing & Heating
North West Leicestershire District Council,31UH,Housing Repairs,HRA Housing Repairs & Maintenance,HRAHRM,Orbis Property Protection Ltd,A028149,21/04/2021,1409617,521.10,Void Property Clearance Services
North West Leicestershire District Council,31UH,Housing Repairs,HRA Housing Repairs & Maintenance,HRAHRM,Orbis Property Protection Ltd,A028149,21/04/2021,1409622,526.52,Void Property Clearance Services
North West Leicestershire District Council,31UH,Housing Repairs,HRA Housing Repairs & Maintenance,HRAHRM,Orbis Property Protection Ltd,A028149,21/04/2021,1409623,282.26,Void Property Clearance Services
North West Leicestershire District Council,31UH,Housing Repairs,HRA Housing Repairs & Maintenance,HRAHRM,Orbis Property Protection Ltd,A028149,21/04/2021,1409627,737.13,Void Property Clearance Services
North West Leicestershire District Council,31UH,Housing Repairs,HRA Housing Repairs & Maintenance,HRAHRM,Laker BMS Ltd,A031787,21/04/2021,1409630,"3,270.72",Contract Payments (Dws) Ext
North West Leicestershire District Council,31UH,Housing Repairs,HRA Housing Repairs & Maintenance,HRAHRM,Laker BMS Ltd,A031787,21/04/2021,1409631,"6,782.59",Contract Payments (Dws) Ext
North West Leicestershire District Council,31UH,Housing Repairs,HRA Housing Repairs & Maintenance,HRAHRM,Laker BMS Ltd,A031787,21/04/2021,1409632,"2,814.96",Contract Payments (Dws) Ext
North West Leicestershire District Council,31UH,Housing Repairs,HRA Housing Repairs & Maintenance,HRAHRM,Emperor Scaffolding Limited,A038405,28/04/2021,1409888,375.00,Hire Of Operational Equipment
North West Leicestershire District Council,31UH,Housing Repairs,HRA Housing Repairs & Maintenance,HRAHRM,Orbis Property Protection Ltd,A028149,28/04/2021,1409889,"1,243.03",Void Property Clearance Services
North West Leicestershire District Council,31UH,Housing Repairs,HRA Housing Repairs & Maintenance,HRAHRM,Emperor Scaffolding Limited,A038405,28/04/2021,1409890,"1,320.00",Hire Of Operational Equipment
North West Leicestershire District Council,31UH,Housing Repairs,HRA Housing Repairs & Maintenance,HRAHRM,Emperor Scaffolding Limited,A038405,28/04/2021,1409891,"1,120.00",Hire Of Operational Equipment
North West Leicestershire District Council,31UH,Housing Repairs,HRA Housing Repairs & Maintenance,HRAHRM,Emperor Scaffolding Limited,A038405,28/04/2021,1409892,300.00,Hire Of Operational Equipment
North West Leicestershire District Council,31UH,Housing Repairs,HRA Housing Repairs & Maintenance,HRAHRM,Emperor Scaffolding Limited,A038405,28/04/2021,1409899,660.00,Hire Of Operational Equipment
North West Leicestershire District Council,31UH,Housing Repairs,HRA Housing Repairs & Maintenance,HRAHRM,Premier Mobility UK Ltd,A045304,28/04/2021,1409901,"1,674.76",Contract Payments (Dws) Ext
North West Leicestershire District Council,31UH,Housing Repairs,HRA Housing Repairs & Maintenance,HRAHRM,John Merison BMC Ltd,A001092,28/04/2021,1409904,"1,750.00",Operational Equipment
North West Leicestershire District Council,31UH,Housing Repairs,HRA Housing Repairs & Maintenance,HRAHRM,Emperor Scaffolding Limited,A038405,28/04/2021,1409906,300.00,Hire Of Operational Equipment
North West Leicestershire District Council,31UH,Housing Repairs,HRA Housing Repairs & Maintenance,HRAHRM,Emperor Scaffolding Limited,A038405,28/04/2021,1409907,980.00,Hire Of Operational Equipment
